Workbook

Sheet Compilado
A1: REGISTRO DE OPERATIVO AÑO 2025
A3: 2025 | B3: CIERRE DE MES | C3: ACUMULADO | D3: RENT. | E3: EFEC. | G3: Estadisticas del 2025
A4: ENERO | B4: ='Enero '!$O$18 -> -16 | C4: =B4 -> -16 | D4: ='Enero '!$O$16 -> -0.0016 | E4: ='Enero '!$R$9 -> 0 | G4: Numero total de Trades en todo el año | H4: =Consolidado!$O$9 -> 0
A5: FEBRERO | B5: =Febrero!$O$18 -> -16 | C5: =C4+B5 -> -32 | D5: =Febrero!$O$16 -> -0.001602564103 | E5: =Febrero!$R$9 -> 0 | G5: Numero total de Trades Ganadores en todo el año | H5: =Consolidado!$P$9 -> 0
A6: MARZO | B6: =Marzo!$O$18 -> -16 | C6: =C5+B6 -> -48 | D6: =Marzo!$O$16 -> -0.001605136437 | E6: =Marzo!$R$9 -> 0 | G6: Numero total de Trades Perdedores en todo el año | H6: =Consolidado!$Q$9 -> 0
A7: ABRIL | B7: =Abril!$O$18 -> -16 | C7: -64 | D7: =Abril!$O$16 -> -0.001607717042 | E7: =Abril!$R$9 -> 0 | G7: Numero de dias sin trade en todo el año | H7: =Consolidado!$Q$26 -> 265
A8: MAYO | B8: =Mayo!$O$18 -> -16 | C8: -80 | D8: =Mayo!$O$16 -> -0.001610305958 | E8: =Mayo!$R$9 -> 0 | G8: Numero de dias operables | H8: =Consolidado!$O$9+Consolidado!$Q$26 -> 265
A9: JUNIO | B9: =Junio!$O$18 -> -16 | C9: -96 | D9: =Junio!$O$16 -> -0.001612903226 | E9: =Junio!$R$9 -> 0 | G9: Max Perdida Seguida diaria | H9: =Consolidado!$O$23 -> 0
A10: JULIO | B10: =Julio!$O$18 -> -16 | C10: -112 | D10: =Julio!$O$16 -> -0.001615508885 | E10: =Julio!$R$9 -> 0 | G10: Maximo de perdida consecutiva (en dólares) | H10: =Consolidado!$Q$19 -> 0
A11: AGOSTO | B11: =Agosto!$O$18 -> -16 | C11: -128 | D11: =Agosto!$O$16 -> -0.001618122977 | E11: =Agosto!$R$9 -> 0 | G11: Maxima ganacia seguida diaria | H11: =Consolidado!$N$23 -> 0
A12: SEPTIEMBRE | B12: =Septiembre!$O$18 -> -15 | C12: -143 | D12: =Septiembre!$O$16 -> -0.001519448947 | E12: =Septiembre!$R$9 -> 0 | G12: Maxima ganancia consecutiva (en dólares) | H12: =Consolidado!$R$19 -> 0
A13: OCTUBRE | B13: =Octubre!$O$18 -> -16 | C13: -159 | D13: =Octubre!$O$16 -> -0.001623211931 | E13: =Octubre!$R$9 -> 0 | G13: Maximo trade Ganador (en dólares) | H13: =Consolidado!$R$22 -> 0
A14: NOVIEMBRE | B14: =Noviembre!$O$18 -> -16 | C14: -175 | D14: =Noviembre!$O$16 -> -0.001625851031 | E14: =Noviembre!$R$9 -> 0 | G14: Maximo trade Perdedor (en dólares) | H14: =Consolidado!$Q$22 -> 0
A15: DICIEMBRE | B15: =Diciembre!$O$18 -> -16 | C15: -191 | D15: =Diciembre!$O$16 -> -0.001628498728 | E15: =Diciembre!$R$9 -> 0 | G15: Promedio de Stops | H15: =IFERROR(Consolidado!$N$26/H6,0) -> 0
A16: Total | C16: =SUM(B4:B15) -> -191 | D16: =C16/C23 -> -0.0191 | E16: =AVERAGE(E4:E15) -> 0 | G16: Promedio de Takes | H16: =IFERROR(Consolidado!$O$26/H5,0) -> 0
G17: Relacion estimada ratio | H17: =IFERROR($H$16/$H$15,0) -> 0
B19: Promedio mensual | C19: =$C$16/12 -> -15.91666667
B21: Relacion con el capital
B23: capital inicial (coloca tu capital) | C23: 10000 | E23: COLOCAR AQUI EL CAPITAL INICIAL
B26: Capital al dia: | C26: =$C$23+$C$16 -> 9809
B27: Stop maximo: | C27: 0.04 | D27: =C26*C27 -> 392.36

Sheet Enero
A1: Table Name | B1: =Enero[[#Headers],[Dates]] -> Dates | U1: Table Name | V1: =Enero_Semanal[[#Headers],[Numero De Semana]] -> Numero De Semana
A2: Table Name | B2: =MID(_xlfn.FORMULATEXT(B1),2,FIND("[",_xlfn.FORMULATEXT(B1))-2) -> Enero | U2: Table Name | V2: =MID(_xlfn.FORMULATEXT(V1),2,FIND("[",_xlfn.FORMULATEXT(V1))-2) -> Enero_Semanal
A3: Saldo | B3: =Compilado!$C$23 -> 10000
A4: Fecha de Comienzo | B4: 2025-01-01
A5: Fecha de Fin | B5: 2025-01-31
B7: Dates | C7: STOP | D7: TAKE | E7: RESULTADO | F7: SALDO | G7: Ganancia Diaria | H7: Numero de Semana | I7: Do not delete | N7: NUMERO DE OPERACIONES | O7: TOTAL OPERACIONES | P7: TIPO | R7: EFECTIVIDAD
B8: 2025-01-01 | E8: =IF(D8<>"","POSITIVA",IF(C8<>"","NEGATIVA","")) ->  | F8: =IF(ISNUMBER($F7),$F7-$C8+$D8,$B$3-$C8+$D8) -> 10000 | G8: =IF(ISNUMBER($G7),$G7-$C8+$D8,0-$C8+$D8) -> 0 | H8: =IFERROR(WEEKNUM(B8),"") -> 1 | P8: BUENAS | Q8: MALAS
B9: 2025-01-02 | F9: 10000 | G9: 0 | H9: 1 | O9: =$P$9+$Q$9 -> 0 | P9: =COUNTIF(Enero[RESULTADO],"POSITIVA") -> 0 | Q9: =COUNTIF(Enero[RESULTADO],"NEGATIVA") -> 0 | R9: =IFERROR($P$9/$O$9,0) -> 0
B10: 2025-01-03 | F10: 10000 | G10: 0 | H10: 1
B11: 2025-01-06 | F11: 10000 | G11: 0 | H11: 2
B12: 2025-01-07 | F12: 10000 | G12: 0 | H12: 2 | N12: Total | O12: =IFERROR(LOOKUP(2,1/(Enero[SALDO]<>""),Enero[SALDO])-$O$14,0) -> 9984 | Q12: Numero De Semana | R12: Total
B13: 2025-01-08 | F13: 10000 | G13: 0 | H13: 2 | Q13: 1 | R13: =SUMIF(Consolidado_Semanal[Numero De Semana],Q13,Consolidado_Semanal[Total]) -> 0
B14: 2025-01-09 | F14: 10000 | G14: 0 | H14: 2 | N14: Datos del mercado | O14: 16 | Q14: 2 | R14: =SUMIF(Consolidado_Semanal[Numero De Semana],Q14,Consolidado_Semanal[Total]) -> 0
B15: 2025-01-10 | F15: 10000 | G15: 0 | H15: 2 | Q15: 3 | R15: =SUMIF(Consolidado_Semanal[Numero De Semana],Q15,Consolidado_Semanal[Total]) -> 0
B16: 2025-01-13 | F16: 10000 | G16: 0 | H16: 3 | N16: Beneficio / Rentabilidad | O16: =IFERROR(($O$12/$B$3)-1,0) -> -0.0016 | Q16: 4 | R16: =SUMIF(Consolidado_Semanal[Numero De Semana],Q16,Consolidado_Semanal[Total]) -> 0
B17: 2025-01-14 | F17: 10000 | G17: 0 | H17: 3 | Q17: 5 | R17: =SUMIF(Consolidado_Semanal[Numero De Semana],Q17,Consolidado_Semanal[Total]) -> 0
B18: 2025-01-15 | F18: 10000 | G18: 0 | H18: 3 | N18: Total Mes | O18: =IFERROR(LOOKUP(2,1/(Enero[Ganancia Diaria]<>""),Enero[Ganancia Diaria])-$O$14,0) -> -16
B19: 2025-01-16 | F19: 10000 | G19: 0 | H19: 3
B20: 2025-01-17 | F20: 10000 | G20: 0 | H20: 3
B21: 2025-01-20 | F21: 10000 | G21: 0 | H21: 4
B22: 2025-01-21 | F22: 10000 | G22: 0 | H22: 4
B23: 2025-01-22 | F23: 10000 | G23: 0 | H23: 4
B24: 2025-01-23 | F24: 10000 | G24: 0 | H24: 4
B25: 2025-01-24 | F25: 10000 | G25: 0 | H25: 4
B26: 2025-01-27 | F26: 10000 | G26: 0 | H26: 5
B27: 2025-01-28 | F27: 10000 | G27: 0 | H27: 5
B28: 2025-01-29 | F28: 10000 | G28: 0 | H28: 5
B29: 2025-01-30 | F29: 10000 | G29: 0 | H29: 5
B30: 2025-01-31 | F30: 10000 | G30: 0 | H30: 5

Sheet Febrero
A1: Table Name | B1: =Febrero[[#Headers],[Dates]] -> Dates | U1: Table Name | V1: =Febrero_Semanal[[#Headers],[Numero De Semana]] -> Numero De Semana
A2: Table Name | B2: =MID(_xlfn.FORMULATEXT(B1),2,FIND("[",_xlfn.FORMULATEXT(B1))-2) -> Febrero | U2: Table Name | V2: =MID(_xlfn.FORMULATEXT(V1),2,FIND("[",_xlfn.FORMULATEXT(V1))-2) -> Febrero_Semanal
A3: Saldo | B3: ='Enero '!$O$12 -> 9984
A4: Fecha de Comienzo | B4: 2025-02-01
A5: Fecha de Fin | B5: 2025-02-28
B7: Dates | C7: STOP | D7: TAKE | E7: RESULTADO | F7: SALDO | G7: Ganancia Diaria | H7: Numero de Semana | I7: Do not delete | N7: NUMERO DE OPERACIONES | O7: TOTAL OPERACIONES | P7: TIPO | R7: EFECTIVIDAD
B8: 2025-02-03 | E8: =IF(D8<>"","POSITIVA",IF(C8<>"","NEGATIVA","")) ->  | F8: =IF(ISNUMBER($F7),$F7-$C8+$D8,$B$3-$C8+$D8) -> 9984 | G8: =IF(ISNUMBER($G7),$G7-$C8+$D8,0-$C8+$D8) -> 0 | H8: =IFERROR(WEEKNUM(B8),"") -> 6 | P8: BUENAS | Q8: MALAS
B9: 2025-02-04 | F9: 9984 | G9: 0 | H9: 6 | O9: =$P$9+$Q$9 -> 0 | P9: =COUNTIF(Febrero[RESULTADO],"POSITIVA") -> 0 | Q9: =COUNTIF(Febrero[RESULTADO],"NEGATIVA") -> 0 | R9: =IFERROR($P$9/$O$9,0) -> 0
B10: 2025-02-05 | F10: 9984 | G10: 0 | H10: 6
B11: 2025-02-06 | F11: 9984 | G11: 0 | H11: 6
B12: 2025-02-07 | F12: 9984 | G12: 0 | H12: 6 | N12: Total | O12: =IFERROR(LOOKUP(2,1/(Febrero[SALDO]<>""),Febrero[SALDO])-$O$14,0) -> 9968 | Q12: Numero De Semana | R12: Total
B13: 2025-02-10 | F13: 9984 | G13: 0 | H13: 7 | Q13: 6 | R13: =SUMIF(Consolidado_Semanal[Numero De Semana],Q13,Consolidado_Semanal[Total]) -> 0
B14: 2025-02-11 | F14: 9984 | G14: 0 | H14: 7 | N14: Datos del mercado | O14: 16 | Q14: 7 | R14: =SUMIF(Consolidado_Semanal[Numero De Semana],Q14,Consolidado_Semanal[Total]) -> 0
B15: 2025-02-12 | F15: 9984 | G15: 0 | H15: 7 | Q15: 8 | R15: =SUMIF(Consolidado_Semanal[Numero De Semana],Q15,Consolidado_Semanal[Total]) -> 0
B16: 2025-02-13 | F16: 9984 | G16: 0 | H16: 7 | N16: Beneficio / Rentabilidad | O16: =IFERROR(($O$12/$B$3)-1,0) -> -0.001602564103 | Q16: 9 | R16: =SUMIF(Consolidado_Semanal[Numero De Semana],Q16,Consolidado_Semanal[Total]) -> 0
B17: 2025-02-14 | F17: 9984 | G17: 0 | H17: 7
B18: 2025-02-17 | F18: 9984 | G18: 0 | H18: 8 | N18: Total Mes | O18: =IFERROR(LOOKUP(2,1/(Febrero[Ganancia Diaria]<>""),Febrero[Ganancia Diaria])-$O$14,0) -> -16
B19: 2025-02-18 | F19: 9984 | G19: 0 | H19: 8
B20: 2025-02-19 | F20: 9984 | G20: 0 | H20: 8
B21: 2025-02-20 | F21: 9984 | G21: 0 | H21: 8
B22: 2025-02-21 | F22: 9984 | G22: 0 | H22: 8
B23: 2025-02-24 | F23: 9984 | G23: 0 | H23: 9
B24: 2025-02-25 | F24: 9984 | G24: 0 | H24: 9
B25: 2025-02-26 | F25: 9984 | G25: 0 | H25: 9
B26: 2025-02-27 | F26: 9984 | G26: 0 | H26: 9
B27: 2025-02-28 | F27: 9984 | G27: 0 | H27: 9
E28: =IF(D28<>"","POSITIVA",IF(C28<>"","NEGATIVA","")) ->  | F28: =IF(ISNUMBER($F27),$F27-$C28+$D28,$B$3-$C28+$D28) -> 9984 | G28: =IF(ISNUMBER($G27),$G27-$C28+$D28,0-$C28+$D28) -> 0 | H28: =IFERROR(WEEKNUM(B28),"") -> 0

Sheet Marzo
A1: Table Name | B1: =Marzo[[#Headers],[Dates]] -> Dates | U1: Table Name | V1: =Marzo_Semanal[[#Headers],[Numero De Semana]] -> Numero De Semana
A2: Table Name | B2: =MID(_xlfn.FORMULATEXT(B1),2,FIND("[",_xlfn.FORMULATEXT(B1))-2) -> Marzo | U2: Table Name | V2: =MID(_xlfn.FORMULATEXT(V1),2,FIND("[",_xlfn.FORMULATEXT(V1))-2) -> Marzo_Semanal
A3: Saldo | B3: =Febrero!$O$12 -> 9968
A4: Fecha de Comienzo | B4: 2025-03-01
A5: Fecha de Fin | B5: 2025-03-31
B7: Dates | C7: STOP | D7: TAKE | E7: RESULTADO | F7: SALDO | G7: Ganancia Diaria | H7: Numero de Semana | I7: Do not delete | N7: NUMERO DE OPERACIONES | O7: TOTAL OPERACIONES | P7: TIPO | R7: EFECTIVIDAD
B8: 2025-03-03 | E8: =IF(D8<>"","POSITIVA",IF(C8<>"","NEGATIVA","")) ->  | F8: =IF(ISNUMBER($F7),$F7-$C8+$D8,$B$3-$C8+$D8) -> 9968 | G8: =IF(ISNUMBER($G7),$G7-$C8+$D8,0-$C8+$D8) -> 0 | H8: =IFERROR(WEEKNUM(B8),"") -> 10 | P8: BUENAS | Q8: MALAS
B9: 2025-03-04 | F9: 9968 | G9: 0 | H9: 10 | O9: =$P$9+$Q$9 -> 0 | P9: =COUNTIF(Marzo[RESULTADO],"POSITIVA") -> 0 | Q9: =COUNTIF(Marzo[RESULTADO],"NEGATIVA") -> 0 | R9: =IFERROR($P$9/$O$9,0) -> 0
B10: 2025-03-05 | F10: 9968 | G10: 0 | H10: 10
B11: 2025-03-06 | F11: 9968 | G11: 0 | H11: 10
B12: 2025-03-07 | F12: 9968 | G12: 0 | H12: 10 | N12: Total | O12: =IFERROR(LOOKUP(2,1/(Marzo[SALDO]<>""),Marzo[SALDO])-$O$14,0) -> 9952 | Q12: Numero De Semana | R12: Total
B13: 2025-03-10 | F13: 9968 | G13: 0 | H13: 11 | Q13: 10 | R13: =SUMIF(Consolidado_Semanal[Numero De Semana],Q13,Consolidado_Semanal[Total]) -> 0
B14: 2025-03-11 | F14: 9968 | G14: 0 | H14: 11 | N14: Datos del mercado | O14: 16 | Q14: 11 | R14: =SUMIF(Consolidado_Semanal[Numero De Semana],Q14,Consolidado_Semanal[Total]) -> 0
B15: 2025-03-12 | F15: 9968 | G15: 0 | H15: 11 | Q15: 12 | R15: =SUMIF(Consolidado_Semanal[Numero De Semana],Q15,Consolidado_Semanal[Total]) -> 0
B16: 2025-03-13 | F16: 9968 | G16: 0 | H16: 11 | N16: Beneficio / Rentabilidad | O16: =IFERROR(($O$12/$B$3)-1,0) -> -0.001605136437 | Q16: 13 | R16: =SUMIF(Consolidado_Semanal[Numero De Semana],Q16,Consolidado_Semanal[Total]) -> 0
B17: 2025-03-14 | F17: 9968 | G17: 0 | H17: 11 | Q17: 14 | R17: =SUMIF(Consolidado_Semanal[Numero De Semana],Q17,Consolidado_Semanal[Total]) -> 0
B18: 2025-03-17 | F18: 9968 | G18: 0 | H18: 12 | N18: Total Mes | O18: =IFERROR(LOOKUP(2,1/(Marzo[Ganancia Diaria]<>""),Marzo[Ganancia Diaria])-$O$14,0) -> -16
B19: 2025-03-18 | F19: 9968 | G19: 0 | H19: 12
B20: 2025-03-19 | F20: 9968 | G20: 0 | H20: 12
B21: 2025-03-20 | F21: 9968 | G21: 0 | H21: 12
B22: 2025-03-21 | F22: 9968 | G22: 0 | H22: 12
B23: 2025-03-24 | F23: 9968 | G23: 0 | H23: 13
B24: 2025-03-25 | F24: 9968 | G24: 0 | H24: 13
B25: 2025-03-26 | F25: 9968 | G25: 0 | H25: 13
B26: 2025-03-27 | F26: 9968 | G26: 0 | H26: 13
B27: 2025-03-28 | F27: 9968 | G27: 0 | H27: 13
B28: 2025-03-31 | F28: 9968 | G28: 0 | H28: 14
B29: 2023-03-30 | F29: 9968 | G29: 0 | H29: 13
B30: 2023-03-31 | F30: 9968 | G30: 0 | H30: 13

Sheet Abril
A1: Table Name | B1: =Abril[[#Headers],[Dates]] -> Dates | U1: Table Name | V1: =Abril_Semanal[[#Headers],[Numero De Semana]] -> Numero De Semana
A2: Table Name | B2: =MID(_xlfn.FORMULATEXT(B1),2,FIND("[",_xlfn.FORMULATEXT(B1))-2) -> Abril | U2: Table Name | V2: =MID(_xlfn.FORMULATEXT(V1),2,FIND("[",_xlfn.FORMULATEXT(V1))-2) -> Abril_Semanal
A3: Saldo | B3: =Marzo!$O$12 -> 9952
A4: Fecha de Comienzo | B4: 2025-04-01
A5: Fecha de Fin | B5: 2025-04-30
B7: Dates | C7: STOP | D7: TAKE | E7: RESULTADO | F7: SALDO | G7: Ganancia Diaria | H7: Numero de Semana | I7: Do not delete | N7: NUMERO DE OPERACIONES | O7: TOTAL OPERACIONES | P7: TIPO | R7: EFECTIVIDAD
B8: 2025-04-01 | E8: =IF(D8<>"","POSITIVA",IF(C8<>"","NEGATIVA","")) ->  | F8: =IF(ISNUMBER($F7),$F7-$C8+$D8,$B$3-$C8+$D8) -> 9952 | G8: =IF(ISNUMBER($G7),$G7-$C8+$D8,0-$C8+$D8) -> 0 | H8: =IFERROR(WEEKNUM(B8),"") -> 14 | P8: BUENAS | Q8: MALAS
B9: 2025-04-02 | F9: 9952 | G9: 0 | H9: 14 | O9: =$P$9+$Q$9 -> 0 | P9: =COUNTIF(Abril[RESULTADO],"POSITIVA") -> 0 | Q9: =COUNTIF(Abril[RESULTADO],"NEGATIVA") -> 0 | R9: =IFERROR($P$9/$O$9,0) -> 0
B10: 2025-04-03 | F10: 9952 | G10: 0 | H10: 14
B11: 2025-04-04 | F11: 9952 | G11: 0 | H11: 14
B12: 2025-04-07 | F12: 9952 | G12: 0 | H12: 15 | N12: Total | O12: =IFERROR(LOOKUP(2,1/(Abril[SALDO]<>""),Abril[SALDO])-$O$14,0) -> 9936 | Q12: Numero De Semana | R12: Total
B13: 2025-04-08 | F13: 9952 | G13: 0 | H13: 15 | Q13: 14 | R13: =SUMIF(Consolidado_Semanal[Numero De Semana],Q13,Consolidado_Semanal[Total]) -> 0
B14: 2025-04-09 | F14: 9952 | G14: 0 | H14: 15 | N14: Datos del mercado | O14: 16 | Q14: 15 | R14: =SUMIF(Consolidado_Semanal[Numero De Semana],Q14,Consolidado_Semanal[Total]) -> 0
B15: 2025-04-10 | F15: 9952 | G15: 0 | H15: 15 | Q15: 16 | R15: =SUMIF(Consolidado_Semanal[Numero De Semana],Q15,Consolidado_Semanal[Total]) -> 0
B16: 2025-04-11 | F16: 9952 | G16: 0 | H16: 15 | N16: Beneficio / Rentabilidad | O16: =IFERROR(($O$12/$B$3)-1,0) -> -0.001607717042 | Q16: 17 | R16: =SUMIF(Consolidado_Semanal[Numero De Semana],Q16,Consolidado_Semanal[Total]) -> 0
B17: 2025-04-14 | F17: 9952 | G17: 0 | H17: 16 | Q17: 18 | R17: =SUMIF(Consolidado_Semanal[Numero De Semana],Q17,Consolidado_Semanal[Total]) -> 0
B18: 2025-04-15 | F18: 9952 | G18: 0 | H18: 16 | N18: Total Mes | O18: =IFERROR(LOOKUP(2,1/(Abril[Ganancia Diaria]<>""),Abril[Ganancia Diaria])-$O$14,0) -> -16
B19: 2025-04-16 | F19: 9952 | G19: 0 | H19: 16
B20: 2025-04-17 | F20: 9952 | G20: 0 | H20: 16
B21: 2025-04-18 | F21: 9952 | G21: 0 | H21: 16
B22: 2025-04-21 | F22: 9952 | G22: 0 | H22: 17
B23: 2025-04-22 | F23: 9952 | G23: 0 | H23: 17
B24: 2025-04-23 | F24: 9952 | G24: 0 | H24: 17
B25: 2025-04-24 | F25: 9952 | G25: 0 | H25: 17
B26: 2025-04-25 | F26: 9952 | G26: 0 | H26: 17
B27: 2025-04-28 | F27: 9952 | G27: 0 | H27: 18
B28: 2025-04-29 | F28: 9952 | G28: 0 | H28: 18
B29: 2025-04-30 | F29: 9952 | G29: 0 | H29: 18

Sheet Mayo
A1: Table Name | B1: =Mayo[[#Headers],[Dates]] -> Dates | U1: Table Name | V1: =Mayo_Semanal[[#Headers],[Numero De Semana]] -> Numero De Semana
A2: Table Name | B2: =MID(_xlfn.FORMULATEXT(B1),2,FIND("[",_xlfn.FORMULATEXT(B1))-2) -> Mayo | U2: Table Name | V2: =MID(_xlfn.FORMULATEXT(V1),2,FIND("[",_xlfn.FORMULATEXT(V1))-2) -> Mayo_Semanal
A3: Saldo | B3: =Abril!$O$12 -> 9936
A4: Fecha de Comienzo | B4: 2025-05-01
A5: Fecha de Fin | B5: 2025-05-31
B7: Dates | C7: STOP | D7: TAKE | E7: RESULTADO | F7: SALDO | G7: Ganancia Diaria | H7: Numero de Semana | I7: Do not delete | N7: NUMERO DE OPERACIONES | O7: TOTAL OPERACIONES | P7: TIPO | R7: EFECTIVIDAD
B8: 2025-05-01 | E8: =IF(D8<>"","POSITIVA",IF(C8<>"","NEGATIVA","")) ->  | F8: =IF(ISNUMBER($F7),$F7-$C8+$D8,$B$3-$C8+$D8) -> 9936 | G8: =IF(ISNUMBER($G7),$G7-$C8+$D8,0-$C8+$D8) -> 0 | H8: =IFERROR(WEEKNUM(B8),"") -> 18 | P8: BUENAS | Q8: MALAS
B9: 2025-05-02 | F9: 9936 | G9: 0 | H9: 18 | O9: =$P$9+$Q$9 -> 0 | P9: =COUNTIF(Mayo[RESULTADO],"POSITIVA") -> 0 | Q9: =COUNTIF(Mayo[RESULTADO],"NEGATIVA") -> 0 | R9: =IFERROR($P$9/$O$9,0) -> 0
B10: 2025-05-05 | F10: 9936 | G10: 0 | H10: 19
B11: 2025-05-06 | F11: 9936 | G11: 0 | H11: 19
B12: 2025-05-07 | F12: 9936 | G12: 0 | H12: 19 | N12: Total | O12: =IFERROR(LOOKUP(2,1/(Mayo[SALDO]<>""),Mayo[SALDO])-$O$14,0) -> 9920 | Q12: Numero De Semana | R12: Total
B13: 2025-05-08 | F13: 9936 | G13: 0 | H13: 19 | Q13: 19 | R13: =SUMIF(Consolidado_Semanal[Numero De Semana],Q13,Consolidado_Semanal[Total]) -> 0
B14: 2025-05-09 | F14: 9936 | G14: 0 | H14: 19 | N14: Datos del mercado | O14: 16 | Q14: 20 | R14: =SUMIF(Consolidado_Semanal[Numero De Semana],Q14,Consolidado_Semanal[Total]) -> 0
B15: 2025-05-12 | F15: 9936 | G15: 0 | H15: 20 | Q15: 21 | R15: =SUMIF(Consolidado_Semanal[Numero De Semana],Q15,Consolidado_Semanal[Total]) -> 0
B16: 2025-05-13 | F16: 9936 | G16: 0 | H16: 20 | N16: Beneficio / Rentabilidad | O16: =IFERROR(($O$12/$B$3)-1,0) -> -0.001610305958 | Q16: 22 | R16: =SUMIF(Consolidado_Semanal[Numero De Semana],Q16,Consolidado_Semanal[Total]) -> 0
B17: 2025-05-14 | F17: 9936 | G17: 0 | H17: 20 | Q17: 23 | R17: =SUMIF(Consolidado_Semanal[Numero De Semana],Q17,Consolidado_Semanal[Total]) -> 0
B18: 2025-05-15 | F18: 9936 | G18: 0 | H18: 20 | N18: Total Mes | O18: =IFERROR(LOOKUP(2,1/(Mayo[Ganancia Diaria]<>""),Mayo[Ganancia Diaria])-$O$14,0) -> -16
B19: 2025-05-16 | F19: 9936 | G19: 0 | H19: 20
B20: 2025-05-19 | F20: 9936 | G20: 0 | H20: 21
B21: 2025-05-20 | F21: 9936 | G21: 0 | H21: 21
B22: 2025-05-21 | F22: 9936 | G22: 0 | H22: 21
B23: 2025-05-22 | F23: 9936 | G23: 0 | H23: 21
B24: 2025-05-23 | F24: 9936 | G24: 0 | H24: 21
B25: 2025-05-26 | F25: 9936 | G25: 0 | H25: 22
B26: 2025-05-27 | F26: 9936 | G26: 0 | H26: 22
B27: 2025-05-28 | F27: 9936 | G27: 0 | H27: 22
B28: 2025-05-29 | F28: 9936 | G28: 0 | H28: 22
B29: 2025-05-30 | E29: =IF(D29<>"","POSITIVA",IF(C29<>"","NEGATIVA","")) ->  | F29: =IF(ISNUMBER($F28),$F28-$C29+$D29,$B$3-$C29+$D29) -> 9936 | G29: =IF(ISNUMBER($G28),$G28-$C29+$D29,0-$C29+$D29) -> 0 | H29: =IFERROR(WEEKNUM(B29),"") -> 22
B30: 2024-05-31 | E30: =IF(D30<>"","POSITIVA",IF(C30<>"","NEGATIVA","")) ->  | F30: =IF(ISNUMBER($F29),$F29-$C30+$D30,$B$3-$C30+$D30) -> 9936 | G30: =IF(ISNUMBER($G29),$G29-$C30+$D30,0-$C30+$D30) -> 0 | H30: =IFERROR(WEEKNUM(B30),"") -> 22

Sheet Junio
A1: Table Name | B1: =Junio[[#Headers],[Dates]] -> Dates | U1: Table Name | V1: =Junio_Semanal[[#Headers],[Numero De Semana]] -> Numero De Semana
A2: Table Name | B2: =MID(_xlfn.FORMULATEXT(B1),2,FIND("[",_xlfn.FORMULATEXT(B1))-2) -> Junio | U2: Table Name | V2: =MID(_xlfn.FORMULATEXT(V1),2,FIND("[",_xlfn.FORMULATEXT(V1))-2) -> Junio_Semanal
A3: Saldo | B3: =Mayo!$O$12 -> 9920
A4: Fecha de Comienzo | B4: 2025-06-01
A5: Fecha de Fin | B5: 2025-06-30
B7: Dates | C7: STOP | D7: TAKE | E7: RESULTADO | F7: SALDO | G7: Ganancia Diaria | H7: Numero de Semana | I7: Do not delete | N7: NUMERO DE OPERACIONES | O7: TOTAL OPERACIONES | P7: TIPO | R7: EFECTIVIDAD
B8: 2025-06-02 | E8: =IF(D8<>"","POSITIVA",IF(C8<>"","NEGATIVA","")) ->  | F8: =IF(ISNUMBER($F7),$F7-$C8+$D8,$B$3-$C8+$D8) -> 9920 | G8: =IF(ISNUMBER($G7),$G7-$C8+$D8,0-$C8+$D8) -> 0 | H8: =IFERROR(WEEKNUM(B8),"") -> 23 | P8: BUENAS | Q8: MALAS
B9: 2025-06-03 | F9: 9920 | G9: 0 | H9: 23 | O9: =$P$9+$Q$9 -> 0 | P9: =COUNTIF(Junio[RESULTADO],"POSITIVA") -> 0 | Q9: =COUNTIF(Junio[RESULTADO],"NEGATIVA") -> 0 | R9: =IFERROR($P$9/$O$9,0) -> 0
B10: 2025-06-04 | F10: 9920 | G10: 0 | H10: 23
B11: 2025-06-05 | F11: 9920 | G11: 0 | H11: 23
B12: 2025-06-06 | F12: 9920 | G12: 0 | H12: 23 | N12: Total | O12: =IFERROR(LOOKUP(2,1/(Junio[SALDO]<>""),Junio[SALDO])-$O$14,0) -> 9904 | Q12: Numero De Semana | R12: Total
B13: 2025-06-09 | F13: 9920 | G13: 0 | H13: 24 | Q13: 23 | R13: =SUMIF(Consolidado_Semanal[Numero De Semana],Q13,Consolidado_Semanal[Total]) -> 0
B14: 2025-06-10 | F14: 9920 | G14: 0 | H14: 24 | N14: Datos del mercado | O14: 16 | Q14: 24 | R14: =SUMIF(Consolidado_Semanal[Numero De Semana],Q14,Consolidado_Semanal[Total]) -> 0
B15: 2025-06-11 | F15: 9920 | G15: 0 | H15: 24 | Q15: 25 | R15: =SUMIF(Consolidado_Semanal[Numero De Semana],Q15,Consolidado_Semanal[Total]) -> 0
B16: 2025-06-12 | F16: 9920 | G16: 0 | H16: 24 | N16: Beneficio / Rentabilidad | O16: =IFERROR(($O$12/$B$3)-1,0) -> -0.001612903226 | Q16: 26 | R16: =SUMIF(Consolidado_Semanal[Numero De Semana],Q16,Consolidado_Semanal[Total]) -> 0
B17: 2025-06-13 | F17: 9920 | G17: 0 | H17: 24 | Q17: 27 | R17: =SUMIF(Consolidado_Semanal[Numero De Semana],Q17,Consolidado_Semanal[Total]) -> 0
B18: 2025-06-16 | F18: 9920 | G18: 0 | H18: 25 | N18: Total Mes | O18: =IFERROR(LOOKUP(2,1/(Junio[Ganancia Diaria]<>""),Junio[Ganancia Diaria])-$O$14,0) -> -16
B19: 2025-06-17 | F19: 9920 | G19: 0 | H19: 25
B20: 2025-06-18 | F20: 9920 | G20: 0 | H20: 25
B21: 2025-06-19 | F21: 9920 | G21: 0 | H21: 25
B22: 2025-06-20 | F22: 9920 | G22: 0 | H22: 25
B23: 2025-06-23 | F23: 9920 | G23: 0 | H23: 26
B24: 2025-06-24 | F24: 9920 | G24: 0 | H24: 26
B25: 2025-06-25 | F25: 9920 | G25: 0 | H25: 26
B26: 2025-06-26 | F26: 9920 | G26: 0 | H26: 26
B27: 2025-06-27 | F27: 9920 | G27: 0 | H27: 26
B28: 2025-06-30 | F28: 9920 | G28: 0 | H28: 27
B29: 2023-06-30 | F29: 9920 | G29: 0 | H29: 26

Sheet Julio
A1: Table Name | B1: =Julio[[#Headers],[Dates]] -> Dates | U1: Table Name | V1: =Julio_Semanal[[#Headers],[Numero De Semana]] -> Numero De Semana
A2: Table Name | B2: =MID(_xlfn.FORMULATEXT(B1),2,FIND("[",_xlfn.FORMULATEXT(B1))-2) -> Julio | U2: Table Name | V2: =MID(_xlfn.FORMULATEXT(V1),2,FIND("[",_xlfn.FORMULATEXT(V1))-2) -> Julio_Semanal
A3: Saldo | B3: =Junio!$O$12 -> 9904
A4: Fecha de Comienzo | B4: 2025-07-01
A5: Fecha de Fin | B5: 2025-07-31
B7: Dates | C7: STOP | D7: TAKE | E7: RESULTADO | F7: SALDO | G7: Ganancia Diaria | H7: Numero de Semana | I7: Do not delete | N7: NUMERO DE OPERACIONES | O7: TOTAL OPERACIONES | P7: TIPO | R7: EFECTIVIDAD
B8: 2025-07-01 | E8: =IF(D8<>"","POSITIVA",IF(C8<>"","NEGATIVA","")) ->  | F8: =IF(ISNUMBER($F7),$F7-$C8+$D8,$B$3-$C8+$D8) -> 9904 | G8: =IF(ISNUMBER($G7),$G7-$C8+$D8,0-$C8+$D8) -> 0 | H8: =IFERROR(WEEKNUM(B8),"") -> 27 | P8: BUENAS | Q8: MALAS
B9: 2025-07-02 | F9: 9904 | G9: 0 | H9: 27 | O9: =$P$9+$Q$9 -> 0 | P9: =COUNTIF(Julio[RESULTADO],"POSITIVA") -> 0 | Q9: =COUNTIF(Julio[RESULTADO],"NEGATIVA") -> 0 | R9: =IFERROR($P$9/$O$9,0) -> 0
B10: 2025-07-03 | F10: 9904 | G10: 0 | H10: 27
B11: 2025-07-04 | F11: 9904 | G11: 0 | H11: 27
B12: 2025-07-07 | F12: 9904 | G12: 0 | H12: 28 | N12: Total | O12: =IFERROR(LOOKUP(2,1/(Julio[SALDO]<>""),Julio[SALDO])-$O$14,0) -> 9888 | Q12: Numero De Semana | R12: Total
B13: 2025-07-08 | F13: 9904 | G13: 0 | H13: 28 | Q13: 27 | R13: =SUMIF(Consolidado_Semanal[Numero De Semana],Q13,Consolidado_Semanal[Total]) -> 0
B14: 2025-07-09 | F14: 9904 | G14: 0 | H14: 28 | N14: Datos del mercado | O14: 16 | Q14: 28 | R14: =SUMIF(Consolidado_Semanal[Numero De Semana],Q14,Consolidado_Semanal[Total]) -> 0
B15: 2025-07-10 | F15: 9904 | G15: 0 | H15: 28 | Q15: 29 | R15: =SUMIF(Consolidado_Semanal[Numero De Semana],Q15,Consolidado_Semanal[Total]) -> 0
B16: 2025-07-11 | F16: 9904 | G16: 0 | H16: 28 | N16: Beneficio / Rentabilidad | O16: =IFERROR(($O$12/$B$3)-1,0) -> -0.001615508885 | Q16: 30 | R16: =SUMIF(Consolidado_Semanal[Numero De Semana],Q16,Consolidado_Semanal[Total]) -> 0
B17: 2025-07-14 | F17: 9904 | G17: 0 | H17: 29 | Q17: 31 | R17: =SUMIF(Consolidado_Semanal[Numero De Semana],Q17,Consolidado_Semanal[Total]) -> 0
B18: 2025-07-15 | F18: 9904 | G18: 0 | H18: 29 | N18: Total Mes | O18: =IFERROR(LOOKUP(2,1/(Julio[Ganancia Diaria]<>""),Julio[Ganancia Diaria])-$O$14,0) -> -16
B19: 2025-07-16 | F19: 9904 | G19: 0 | H19: 29
B20: 2025-07-17 | F20: 9904 | G20: 0 | H20: 29
B21: 2025-07-18 | F21: 9904 | G21: 0 | H21: 29
B22: 2025-07-21 | F22: 9904 | G22: 0 | H22: 30
B23: 2025-07-22 | F23: 9904 | G23: 0 | H23: 30
B24: 2025-07-23 | F24: 9904 | G24: 0 | H24: 30
B25: 2025-07-24 | F25: 9904 | G25: 0 | H25: 30
B26: 2025-07-25 | F26: 9904 | G26: 0 | H26: 30
B27: 2025-07-28 | F27: 9904 | G27: 0 | H27: 31
B28: 2025-07-29 | F28: 9904 | G28: 0 | H28: 31
B29: 2025-07-30 | F29: 9904 | G29: 0 | H29: 31
B30: 2025-07-31 | F30: 9904 | G30: 0 | H30: 31

Sheet Agosto
A1: Table Name | B1: =Agosto[[#Headers],[Dates]] -> Dates | U1: Table Name | V1: =Agosto_Semanal[[#Headers],[Numero De Semana]] -> Numero De Semana
A2: Table Name | B2: =MID(_xlfn.FORMULATEXT(B1),2,FIND("[",_xlfn.FORMULATEXT(B1))-2) -> Agosto | U2: Table Name | V2: =MID(_xlfn.FORMULATEXT(V1),2,FIND("[",_xlfn.FORMULATEXT(V1))-2) -> Agosto_Semanal
A3: Saldo | B3: =Julio!$O$12 -> 9888
A4: Fecha de Comienzo | B4: 2025-08-01
A5: Fecha de Fin | B5: 2025-08-31
B7: Dates | C7: STOP | D7: TAKE | E7: RESULTADO | F7: SALDO | G7: Ganancia Diaria | H7: Numero de Semana | I7: Do not delete | N7: NUMERO DE OPERACIONES | O7: TOTAL OPERACIONES | P7: TIPO | R7: EFECTIVIDAD
B8: 2025-08-01 | E8: =IF(D8<>"","POSITIVA",IF(C8<>"","NEGATIVA","")) ->  | F8: =IF(ISNUMBER($F7),$F7-$C8+$D8,$B$3-$C8+$D8) -> 9888 | G8: =IF(ISNUMBER($G7),$G7-$C8+$D8,0-$C8+$D8) -> 0 | H8: =IFERROR(WEEKNUM(B8),"") -> 31 | P8: BUENAS | Q8: MALAS
B9: 2025-08-04 | F9: 9888 | G9: 0 | H9: 32 | O9: =$P$9+$Q$9 -> 0 | P9: =COUNTIF(Agosto[RESULTADO],"POSITIVA") -> 0 | Q9: =COUNTIF(Agosto[RESULTADO],"NEGATIVA") -> 0 | R9: =IFERROR($P$9/$O$9,0) -> 0
B10: 2025-08-05 | F10: 9888 | G10: 0 | H10: 32
B11: 2025-08-06 | F11: 9888 | G11: 0 | H11: 32
B12: 2025-08-07 | F12: 9888 | G12: 0 | H12: 32 | N12: Total | O12: =IFERROR(LOOKUP(2,1/(Agosto[SALDO]<>""),Agosto[SALDO])-$O$14,0) -> 9872 | Q12: Numero De Semana | R12: Total
B13: 2025-08-08 | F13: 9888 | G13: 0 | H13: 32 | Q13: 32 | R13: =SUMIF(Consolidado_Semanal[Numero De Semana],Q13,Consolidado_Semanal[Total]) -> 0
B14: 2025-08-11 | F14: 9888 | G14: 0 | H14: 33 | N14: Datos del mercado | O14: 16 | Q14: 33 | R14: =SUMIF(Consolidado_Semanal[Numero De Semana],Q14,Consolidado_Semanal[Total]) -> 0
B15: 2025-08-12 | F15: 9888 | G15: 0 | H15: 33 | Q15: 34 | R15: =SUMIF(Consolidado_Semanal[Numero De Semana],Q15,Consolidado_Semanal[Total]) -> 0
B16: 2025-08-13 | F16: 9888 | G16: 0 | H16: 33 | N16: Beneficio / Rentabilidad | O16: =IFERROR(($O$12/$B$3)-1,0) -> -0.001618122977 | Q16: 35 | R16: =SUMIF(Consolidado_Semanal[Numero De Semana],Q16,Consolidado_Semanal[Total]) -> 0
B17: 2025-08-14 | F17: 9888 | G17: 0 | H17: 33 | Q17: 36 | R17: =SUMIF(Consolidado_Semanal[Numero De Semana],Q17,Consolidado_Semanal[Total]) -> 0
B18: 2025-08-15 | F18: 9888 | G18: 0 | H18: 33 | N18: Total Mes | O18: =IFERROR(LOOKUP(2,1/(Agosto[Ganancia Diaria]<>""),Agosto[Ganancia Diaria])-$O$14,0) -> -16
B19: 2025-08-18 | F19: 9888 | G19: 0 | H19: 34
B20: 2025-08-19 | F20: 9888 | G20: 0 | H20: 34
B21: 2025-08-20 | F21: 9888 | G21: 0 | H21: 34
B22: 2025-08-21 | F22: 9888 | G22: 0 | H22: 34
B23: 2025-08-22 | F23: 9888 | G23: 0 | H23: 34
B24: 2025-08-25 | F24: 9888 | G24: 0 | H24: 35
B25: 2025-08-26 | F25: 9888 | G25: 0 | H25: 35
B26: 2025-08-27 | F26: 9888 | G26: 0 | H26: 35
B27: 2025-08-28 | F27: 9888 | G27: 0 | H27: 35
B28: 2025-08-29 | F28: 9888 | G28: 0 | H28: 35
E29: =IF(D29<>"","POSITIVA",IF(C29<>"","NEGATIVA","")) ->  | F29: =IF(ISNUMBER($F28),$F28-$C29+$D29,$B$3-$C29+$D29) -> 9888 | G29: =IF(ISNUMBER($G28),$G28-$C29+$D29,0-$C29+$D29) -> 0 | H29: =IFERROR(WEEKNUM(B29),"") -> 0
E30: =IF(D30<>"","POSITIVA",IF(C30<>"","NEGATIVA","")) ->  | F30: =IF(ISNUMBER($F29),$F29-$C30+$D30,$B$3-$C30+$D30) -> 9888 | G30: =IF(ISNUMBER($G29),$G29-$C30+$D30,0-$C30+$D30) -> 0 | H30: =IFERROR(WEEKNUM(B30),"") -> 0

Sheet Septiembre
A1: Table Name | B1: =Septiembre[[#Headers],[Dates]] -> Dates | U1: Table Name | V1: =Septiembre_Semanal[[#Headers],[Numero De Semana]] -> Numero De Semana
A2: Table Name | B2: =MID(_xlfn.FORMULATEXT(B1),2,FIND("[",_xlfn.FORMULATEXT(B1))-2) -> Septiembre | U2: Table Name | V2: =MID(_xlfn.FORMULATEXT(V1),2,FIND("[",_xlfn.FORMULATEXT(V1))-2) -> Septiembre_Semanal
A3: Saldo | B3: =Agosto!$O$12 -> 9872
A4: Fecha de Comienzo | B4: 2025-09-01
A5: Fecha de Fin | B5: 2025-09-30
B7: Dates | C7: STOP | D7: TAKE | E7: RESULTADO | F7: SALDO | G7: Ganancia Diaria | H7: Numero de Semana | I7: Do not delete | N7: NUMERO DE OPERACIONES | O7: TOTAL OPERACIONES | P7: TIPO | R7: EFECTIVIDAD
B8: 2025-09-01 | E8: =IF(D8<>"","POSITIVA",IF(C8<>"","NEGATIVA","")) ->  | F8: =IF(ISNUMBER($F7),$F7-$C8+$D8,$B$3-$C8+$D8) -> 9872 | G8: =IF(ISNUMBER($G7),$G7-$C8+$D8,0-$C8+$D8) -> 0 | H8: =IFERROR(WEEKNUM(B8),"") -> 36 | P8: BUENAS | Q8: MALAS
B9: 2025-09-02 | F9: =IF(ISNUMBER($F8),$F8-$C9+$D9,$B$3-$C9+$D9) -> 9872 | G9: 0 | H9: 36 | O9: =$P$9+$Q$9 -> 0 | P9: =COUNTIF(Septiembre[RESULTADO],"POSITIVA") -> 0 | Q9: =COUNTIF(Septiembre[RESULTADO],"NEGATIVA") -> 0 | R9: =IFERROR($P$9/$O$9,0) -> 0
B10: 2025-09-03 | F10: 9872 | G10: 0 | H10: 36
B11: 2025-09-04 | F11: 9872 | G11: 0 | H11: 36
B12: 2025-09-05 | F12: 9872 | G12: 0 | H12: 36 | N12: Total | O12: =IFERROR(LOOKUP(2,1/(Septiembre[SALDO]<>""),Septiembre[SALDO])-$O$14,0) -> 9857 | Q12: Numero De Semana | R12: Total
B13: 2025-09-08 | F13: 9872 | G13: 0 | H13: 37 | Q13: 36 | R13: =SUMIF(Consolidado_Semanal[Numero De Semana],Q13,Consolidado_Semanal[Total]) -> 0
B14: 2025-09-09 | F14: 9872 | G14: 0 | H14: 37 | N14: Datos del mercado | O14: 15 | Q14: 37 | R14: =SUMIF(Consolidado_Semanal[Numero De Semana],Q14,Consolidado_Semanal[Total]) -> 0
B15: 2025-09-10 | F15: 9872 | G15: 0 | H15: 37 | Q15: 38 | R15: =SUMIF(Consolidado_Semanal[Numero De Semana],Q15,Consolidado_Semanal[Total]) -> 0
B16: 2025-09-11 | F16: 9872 | G16: 0 | H16: 37 | N16: Beneficio / Rentabilidad | O16: =IFERROR(($O$12/$B$3)-1,0) -> -0.001519448947 | Q16: 39 | R16: =SUMIF(Consolidado_Semanal[Numero De Semana],Q16,Consolidado_Semanal[Total]) -> 0
B17: 2025-09-12 | F17: 9872 | G17: 0 | H17: 37 | Q17: 40 | R17: =SUMIF(Consolidado_Semanal[Numero De Semana],Q17,Consolidado_Semanal[Total]) -> 0
B18: 2025-09-15 | F18: 9872 | G18: 0 | H18: 38 | N18: Total Mes | O18: =IFERROR(LOOKUP(2,1/(Septiembre[Ganancia Diaria]<>""),Septiembre[Ganancia Diaria])-$O$14,0) -> -15
B19: 2025-09-16 | F19: 9872 | G19: 0 | H19: 38
B20: 2025-09-17 | F20: 9872 | G20: 0 | H20: 38
B21: 2025-09-18 | F21: 9872 | G21: 0 | H21: 38
B22: 2025-09-19 | F22: 9872 | G22: 0 | H22: 38
B23: 2025-09-22 | F23: 9872 | G23: 0 | H23: 39
B24: 2025-09-23 | F24: 9872 | G24: 0 | H24: 39
B25: 2025-09-24 | F25: 9872 | G25: 0 | H25: 39
B26: 2025-09-25 | F26: 9872 | G26: 0 | H26: 39
B27: 2025-09-26 | F27: 9872 | G27: 0 | H27: 39
B28: 2025-09-29 | F28: 9872 | G28: 0 | H28: 40
B29: 2025-09-30 | F29: 9872 | G29: 0 | H29: 40

Sheet Octubre
A1: Table Name | B1: =Octubre[[#Headers],[Dates]] -> Dates | U1: Table Name | V1: =Octubre_Semanal[[#Headers],[Numero De Semana]] -> Numero De Semana
A2: Table Name | B2: =MID(_xlfn.FORMULATEXT(B1),2,FIND("[",_xlfn.FORMULATEXT(B1))-2) -> Octubre | U2: Table Name | V2: =MID(_xlfn.FORMULATEXT(V1),2,FIND("[",_xlfn.FORMULATEXT(V1))-2) -> Octubre_Semanal
A3: Saldo | B3: =Septiembre!$O$12 -> 9857
A4: Fecha de Comienzo | B4: 2025-10-01
A5: Fecha de Fin | B5: 2025-10-31
B7: Dates | C7: STOP | D7: TAKE | E7: RESULTADO | F7: SALDO | G7: Ganancia Diaria | H7: Numero de Semana | I7: Do not delete | N7: NUMERO DE OPERACIONES | O7: TOTAL OPERACIONES | P7: TIPO | R7: EFECTIVIDAD
B8: 2025-10-01 | E8: =IF(D8<>"","POSITIVA",IF(C8<>"","NEGATIVA","")) ->  | F8: =IF(ISNUMBER($F7),$F7-$C8+$D8,$B$3-$C8+$D8) -> 9857 | G8: =IF(ISNUMBER($G7),$G7-$C8+$D8,0-$C8+$D8) -> 0 | H8: =IFERROR(WEEKNUM(B8),"") -> 40 | P8: BUENAS | Q8: MALAS
B9: 2025-10-02 | F9: 9857 | G9: 0 | H9: 40 | O9: =$P$9+$Q$9 -> 0 | P9: =COUNTIF(Octubre[RESULTADO],"POSITIVA") -> 0 | Q9: =COUNTIF(Octubre[RESULTADO],"NEGATIVA") -> 0 | R9: =IFERROR($P$9/$O$9,0) -> 0
B10: 2025-10-03 | F10: 9857 | G10: 0 | H10: 40
B11: 2025-10-06 | F11: 9857 | G11: 0 | H11: 41
B12: 2025-10-07 | F12: 9857 | G12: 0 | H12: 41 | N12: Total | O12: =IFERROR(LOOKUP(2,1/(Octubre[SALDO]<>""),Octubre[SALDO])-$O$14,0) -> 9841 | Q12: Numero De Semana | R12: Total
B13: 2025-10-08 | F13: 9857 | G13: 0 | H13: 41 | Q13: 40 | R13: =SUMIF(Consolidado_Semanal[Numero De Semana],Q13,Consolidado_Semanal[Total]) -> 0
B14: 2025-10-09 | F14: 9857 | G14: 0 | H14: 41 | N14: Datos del mercado | O14: 16 | Q14: 41 | R14: =SUMIF(Consolidado_Semanal[Numero De Semana],Q14,Consolidado_Semanal[Total]) -> 0
B15: 2025-10-10 | F15: 9857 | G15: 0 | H15: 41 | Q15: 42 | R15: =SUMIF(Consolidado_Semanal[Numero De Semana],Q15,Consolidado_Semanal[Total]) -> 0
B16: 2025-10-13 | F16: 9857 | G16: 0 | H16: 42 | N16: Beneficio / Rentabilidad | O16: =IFERROR(($O$12/$B$3)-1,0) -> -0.001623211931 | Q16: 43 | R16: =SUMIF(Consolidado_Semanal[Numero De Semana],Q16,Consolidado_Semanal[Total]) -> 0
B17: 2025-10-14 | F17: 9857 | G17: 0 | H17: 42 | Q17: 44 | R17: =SUMIF(Consolidado_Semanal[Numero De Semana],Q17,Consolidado_Semanal[Total]) -> 0
B18: 2025-10-15 | F18: 9857 | G18: 0 | H18: 42 | N18: Total Mes | O18: =IFERROR(LOOKUP(2,1/(Octubre[Ganancia Diaria]<>""),Octubre[Ganancia Diaria])-$O$14,0) -> -16
B19: 2025-10-16 | F19: 9857 | G19: 0 | H19: 42
B20: 2025-10-17 | F20: 9857 | G20: 0 | H20: 42
B21: 2025-10-20 | F21: 9857 | G21: 0 | H21: 43
B22: 2025-10-21 | F22: 9857 | G22: 0 | H22: 43
B23: 2025-10-22 | F23: 9857 | G23: 0 | H23: 43
B24: 2025-10-23 | F24: 9857 | G24: 0 | H24: 43
B25: 2025-10-24 | F25: 9857 | G25: 0 | H25: 43
B26: 2025-10-27 | F26: 9857 | G26: 0 | H26: 44
B27: 2025-10-28 | F27: 9857 | G27: 0 | H27: 44
B28: 2025-10-29 | F28: 9857 | G28: 0 | H28: 44
B29: 2025-10-30 | F29: 9857 | G29: 0 | H29: 44
B30: 2025-10-31 | E30: =IF(D30<>"","POSITIVA",IF(C30<>"","NEGATIVA","")) ->  | F30: =IF(ISNUMBER($F29),$F29-$C30+$D30,$B$3-$C30+$D30) -> 9857 | G30: =IF(ISNUMBER($G29),$G29-$C30+$D30,0-$C30+$D30) -> 0 | H30: =IFERROR(WEEKNUM(B30),"") -> 44

Sheet Noviembre
A1: Table Name | B1: =Noviembre[[#Headers],[Dates]] -> Dates | U1: Table Name | V1: =Noviembre_Semanal[[#Headers],[Numero De Semana]] -> Numero De Semana
A2: Table Name | B2: =MID(_xlfn.FORMULATEXT(B1),2,FIND("[",_xlfn.FORMULATEXT(B1))-2) -> Noviembre | U2: Table Name | V2: =MID(_xlfn.FORMULATEXT(V1),2,FIND("[",_xlfn.FORMULATEXT(V1))-2) -> Noviembre_Semanal
A3: Saldo | B3: =Octubre!$O$12 -> 9841
A4: Fecha de Comienzo | B4: 2025-11-01
A5: Fecha de Fin | B5: 2025-11-30
B7: Dates | C7: STOP | D7: TAKE | E7: RESULTADO | F7: SALDO | G7: Ganancia Diaria | H7: Numero de Semana | I7: Do not delete | N7: NUMERO DE OPERACIONES | O7: TOTAL OPERACIONES | P7: TIPO | R7: EFECTIVIDAD
B8: 2025-11-03 | E8: =IF(D8<>"","POSITIVA",IF(C8<>"","NEGATIVA","")) ->  | F8: =IF(ISNUMBER($F7),$F7-$C8+$D8,$B$3-$C8+$D8) -> 9841 | G8: =IF(ISNUMBER($G7),$G7-$C8+$D8,0-$C8+$D8) -> 0 | H8: =IFERROR(WEEKNUM(B8),"") -> 45 | P8: BUENAS | Q8: MALAS
B9: 2025-11-04 | F9: 9841 | G9: 0 | H9: 45 | O9: =$P$9+$Q$9 -> 0 | P9: =COUNTIF(Noviembre[RESULTADO],"POSITIVA") -> 0 | Q9: =COUNTIF(Noviembre[RESULTADO],"NEGATIVA") -> 0 | R9: =IFERROR($P$9/$O$9,0) -> 0
B10: 2025-11-05 | F10: 9841 | G10: 0 | H10: 45
B11: 2025-11-06 | F11: 9841 | G11: 0 | H11: 45
B12: 2025-11-07 | F12: 9841 | G12: 0 | H12: 45 | N12: Total | O12: =IFERROR(LOOKUP(2,1/(Noviembre[SALDO]<>""),Noviembre[SALDO])-$O$14,0) -> 9825 | Q12: Numero De Semana | R12: Total
B13: 2025-11-10 | F13: 9841 | G13: 0 | H13: 46 | Q13: 45 | R13: =SUMIF(Consolidado_Semanal[Numero De Semana],Q13,Consolidado_Semanal[Total]) -> 0
B14: 2025-11-11 | F14: 9841 | G14: 0 | H14: 46 | N14: Datos del mercado | O14: 16 | Q14: 46 | R14: =SUMIF(Consolidado_Semanal[Numero De Semana],Q14,Consolidado_Semanal[Total]) -> 0
B15: 2025-11-12 | F15: 9841 | G15: 0 | H15: 46 | Q15: 47 | R15: =SUMIF(Consolidado_Semanal[Numero De Semana],Q15,Consolidado_Semanal[Total]) -> 0
B16: 2025-11-13 | F16: 9841 | G16: 0 | H16: 46 | N16: Beneficio / Rentabilidad | O16: =IFERROR(($O$12/$B$3)-1,0) -> -0.001625851031 | Q16: 48 | R16: =SUMIF(Consolidado_Semanal[Numero De Semana],Q16,Consolidado_Semanal[Total]) -> 0
B17: 2025-11-14 | F17: 9841 | G17: 0 | H17: 46 | Q17: 49 | R17: =SUMIF(Consolidado_Semanal[Numero De Semana],Q17,Consolidado_Semanal[Total]) -> 0
B18: 2025-11-17 | F18: 9841 | G18: 0 | H18: 47 | N18: Total Mes | O18: =IFERROR(LOOKUP(2,1/(Noviembre[Ganancia Diaria]<>""),Noviembre[Ganancia Diaria])-$O$14,0) -> -16
B19: 2025-11-18 | F19: 9841 | G19: 0 | H19: 47
B20: 2025-11-19 | F20: 9841 | G20: 0 | H20: 47
B21: 2025-11-20 | F21: 9841 | G21: 0 | H21: 47
B22: 2025-11-21 | F22: 9841 | G22: 0 | H22: 47
B23: 2025-11-24 | F23: 9841 | G23: 0 | H23: 48
B24: 2025-11-25 | F24: 9841 | G24: 0 | H24: 48
B25: 2025-11-26 | F25: 9841 | G25: 0 | H25: 48
B26: 2025-11-27 | F26: 9841 | G26: 0 | H26: 48
B27: 2025-11-28 | F27: 9841 | G27: 0 | H27: 48
F28: 9841 | G28: 0 | H28: 0
E29: =IF(D29<>"","POSITIVA",IF(C29<>"","NEGATIVA","")) ->  | F29: =IF(ISNUMBER($F28),$F28-$C29+$D29,$B$3-$C29+$D29) -> 9841 | G29: =IF(ISNUMBER($G28),$G28-$C29+$D29,0-$C29+$D29) -> 0 | H29: =IFERROR(WEEKNUM(B29),"") -> 0

Sheet Diciembre
A1: Table Name | B1: =Diciembre[[#Headers],[Dates]] -> Dates | U1: Table Name | V1: =Diciembre_Semanal[[#Headers],[Numero De Semana]] -> Numero De Semana
A2: Table Name | B2: =MID(_xlfn.FORMULATEXT(B1),2,FIND("[",_xlfn.FORMULATEXT(B1))-2) -> Diciembre | U2: Table Name | V2: =MID(_xlfn.FORMULATEXT(V1),2,FIND("[",_xlfn.FORMULATEXT(V1))-2) -> Diciembre_Semanal
A3: Saldo | B3: =Noviembre!$O$12 -> 9825
A4: Fecha de Comienzo | B4: 2025-12-01
A5: Fecha de Fin | B5: 2025-12-31
B7: Dates | C7: STOP | D7: TAKE | E7: RESULTADO | F7: SALDO | G7: Ganancia Diaria | H7: Numero de Semana | I7: Do not delete | N7: NUMERO DE OPERACIONES | O7: TOTAL OPERACIONES | P7: TIPO | R7: EFECTIVIDAD
B8: 2025-12-01 | E8: =IF(D8<>"","POSITIVA",IF(C8<>"","NEGATIVA","")) ->  | F8: =IF(ISNUMBER($F7),$F7-$C8+$D8,$B$3-$C8+$D8) -> 9825 | G8: =IF(ISNUMBER($G7),$G7-$C8+$D8,0-$C8+$D8) -> 0 | H8: =IFERROR(WEEKNUM(B8),"") -> 49 | P8: BUENAS | Q8: MALAS
B9: 2025-12-02 | F9: 9825 | G9: 0 | H9: 49 | O9: =$P$9+$Q$9 -> 0 | P9: =COUNTIF(Diciembre[RESULTADO],"POSITIVA") -> 0 | Q9: =COUNTIF(Diciembre[RESULTADO],"NEGATIVA") -> 0 | R9: =IFERROR($P$9/$O$9,0) -> 0
B10: 2025-12-03 | F10: 9825 | G10: 0 | H10: 49
B11: 2025-12-04 | F11: 9825 | G11: 0 | H11: 49
B12: 2025-12-05 | F12: 9825 | G12: 0 | H12: 49 | N12: Total | O12: =IFERROR(LOOKUP(2,1/(Diciembre[SALDO]<>""),Diciembre[SALDO])-$O$14,0) -> 9809 | Q12: Numero De Semana | R12: Total
B13: 2025-12-08 | F13: 9825 | G13: 0 | H13: 50 | Q13: 49 | R13: =SUMIF(Consolidado_Semanal[Numero De Semana],Q13,Consolidado_Semanal[Total]) -> 0
B14: 2025-12-09 | F14: 9825 | G14: 0 | H14: 50 | N14: Datos del mercado | O14: 16 | Q14: 50 | R14: =SUMIF(Consolidado_Semanal[Numero De Semana],Q14,Consolidado_Semanal[Total]) -> 0
B15: 2025-12-10 | F15: 9825 | G15: 0 | H15: 50 | Q15: 51 | R15: =SUMIF(Consolidado_Semanal[Numero De Semana],Q15,Consolidado_Semanal[Total]) -> 0
B16: 2025-12-11 | F16: 9825 | G16: 0 | H16: 50 | N16: Beneficio / Rentabilidad | O16: =IFERROR(($O$12/$B$3)-1,0) -> -0.001628498728 | Q16: 52 | R16: =SUMIF(Consolidado_Semanal[Numero De Semana],Q16,Consolidado_Semanal[Total]) -> 0
B17: 2025-12-12 | F17: 9825 | G17: 0 | H17: 50 | Q17: 53 | R17: =SUMIF(Consolidado_Semanal[Numero De Semana],Q17,Consolidado_Semanal[Total]) -> 0
B18: 2025-12-15 | F18: 9825 | G18: 0 | H18: 51 | N18: Total Mes | O18: =IFERROR(LOOKUP(2,1/(Diciembre[Ganancia Diaria]<>""),Diciembre[Ganancia Diaria])-$O$14,0) -> -16
B19: 2025-12-16 | F19: 9825 | G19: 0 | H19: 51
B20: 2025-12-17 | F20: 9825 | G20: 0 | H20: 51
B21: 2025-12-18 | F21: 9825 | G21: =IF(ISNUMBER($G20),$G20-$C21+$D21,0-$C21+$D21) -> 0 | H21: 51
B22: 2025-12-19 | F22: 9825 | G22: 0 | H22: 51
B23: 2025-12-22 | F23: 9825 | G23: 0 | H23: 52
B24: 2025-12-23 | F24: 9825 | G24: 0 | H24: 52
B25: 2025-12-24 | F25: 9825 | G25: 0 | H25: 52
B26: 2025-12-25 | F26: 9825 | G26: 0 | H26: 52
B27: 2025-12-26 | F27: 9825 | G27: 0 | H27: 52
B28: 2025-12-29 | F28: 9825 | G28: 0 | H28: 53
B29: 2025-12-30 | F29: 9825 | G29: 0 | H29: 53
B30: 2025-12-31 | F30: 9825 | G30: 0 | H30: 53

Sheet Consolidado (hidden)
A1: Table Name | B1: =Consolidado[[#Headers],[Dates]] -> Dates | U1: Table Name | V1: =Consolidado_Semanal[[#Headers],[Numero De Semana]] -> Numero De Semana
A2: Table Name | B2: =MID(_xlfn.FORMULATEXT(B1),2,FIND("[",_xlfn.FORMULATEXT(B1))-2) -> Consolidado | U2: Table Name | V2: =MID(_xlfn.FORMULATEXT(V1),2,FIND("[",_xlfn.FORMULATEXT(V1))-2) -> Consolidado_Semanal
B7: Dates | C7: STOP | D7: TAKE | E7: RESULTADO | F7: SALDO | G7: Ganancia Diaria | H7: Numero de Semana | I7: Do not delete | K7: Resultado | L7: Consecutivos | N7: NUMERO DE OPERACIONES | O7: TOTAL OPERACIONES | P7: TIPO | R7: EFECTIVIDAD | T7: Numero De Semana | U7: Total | X7: STOP | Y7: TAKE | Z7: RESULTADO | AA7: Consecutivos | AB7: Sum Stop | AC7: Sum Takes
B8: 2020-01-30 | F8: 79996.25 | G8: 0 | H8: 5 | L8: =CountConsVal(K8:K272) ->  | P8: BUENAS | Q8: MALAS | T8: 5 | U8: =SUMIF(Consolidado[Numero de Semana],$T8,Consolidado[TAKE])-SUMIF(Consolidado[Numero de Semana],$T8,Consolidado[STOP]) -> 0 | AA8: =CountConsVal(Z8:Z272) -> 
B9: 2020-01-31 | F9: 79996.25 | G9: 0 | H9: 5 | O9: =$P$9+$Q$9 -> 0 | P9: =COUNTIF(Consolidado[RESULTADO],"POSITIVA") -> 0 | Q9: =COUNTIF(Consolidado[RESULTADO],"NEGATIVA") -> 0 | R9: =IFERROR($P$9/$O$9,0) -> 0 | T9: 31 | U9: =SUMIF(Consolidado[Numero de Semana],$T9,Consolidado[TAKE])-SUMIF(Consolidado[Numero de Semana],$T9,Consolidado[STOP]) -> 0
B10: 2020-07-31 | F10: 79906.25 | G10: 0 | H10: 31 | T10: 44 | U10: =SUMIF(Consolidado[Numero de Semana],$T10,Consolidado[TAKE])-SUMIF(Consolidado[Numero de Semana],$T10,Consolidado[STOP]) -> 0
B11: 2020-10-30 | F11: 79861.25 | G11: 0 | H11: 44 | T11: 1 | U11: =SUMIF(Consolidado[Numero de Semana],$T11,Consolidado[TAKE])-SUMIF(Consolidado[Numero de Semana],$T11,Consolidado[STOP]) -> 0
B12: 2021-01-01 | F12: 79996.25 | G12: 0 | H12: 1 | N12: Total | O12: =IFERROR(LOOKUP(2,1/(Consolidado[SALDO]<>""),Consolidado[SALDO])-$O$14,0) -> 79816.25 | T12: 2 | U12: =SUMIF(Consolidado[Numero de Semana],$T12,Consolidado[TAKE])-SUMIF(Consolidado[Numero de Semana],$T12,Consolidado[STOP]) -> 0
B13: 2021-01-04 | F13: 79996.25 | G13: 0 | H13: 2 | T13: 3 | U13: =SUMIF(Consolidado[Numero de Semana],$T13,Consolidado[TAKE])-SUMIF(Consolidado[Numero de Semana],$T13,Consolidado[STOP]) -> 0
B14: 2021-01-05 | F14: 79996.25 | G14: 0 | H14: 2 | N14: Datos del mercado | O14: 15 | T14: 4 | U14: =SUMIF(Consolidado[Numero de Semana],$T14,Consolidado[TAKE])-SUMIF(Consolidado[Numero de Semana],$T14,Consolidado[STOP]) -> 0
B15: 2021-01-06 | F15: 79996.25 | G15: 0 | H15: 2 | T15: 6 | U15: =SUMIF(Consolidado[Numero de Semana],$T15,Consolidado[TAKE])-SUMIF(Consolidado[Numero de Semana],$T15,Consolidado[STOP]) -> 0
B16: 2021-01-07 | F16: 79996.25 | G16: 0 | H16: 2 | T16: 7 | U16: =SUMIF(Consolidado[Numero de Semana],$T16,Consolidado[TAKE])-SUMIF(Consolidado[Numero de Semana],$T16,Consolidado[STOP]) -> 0
B17: 2021-01-08 | F17: 79996.25 | G17: 0 | H17: 2 | T17: 8 | U17: =SUMIF(Consolidado[Numero de Semana],$T17,Consolidado[TAKE])-SUMIF(Consolidado[Numero de Semana],$T17,Consolidado[STOP]) -> 0
B18: 2021-01-11 | F18: 79996.25 | G18: 0 | H18: 3 | N18: Beneficio / Rentabilidad | Q18: Max Perdida Consecutiva | R18: Maxima Ganancia Consecutiva | T18: 9 | U18: =SUMIF(Consolidado[Numero de Semana],$T18,Consolidado[TAKE])-SUMIF(Consolidado[Numero de Semana],$T18,Consolidado[STOP]) -> 0
B19: 2021-01-12 | F19: 79996.25 | G19: 0 | H19: 3 | Q19: =MAX(IF(Z8:Z389="NEGATIVA",AB8:AB389)) -> 0 | R19: =MAX(IF(Z8:Z389="POSITIVA",AC8:AC389)) -> 0 | T19: 10 | U19: =SUMIF(Consolidado[Numero de Semana],$T19,Consolidado[TAKE])-SUMIF(Consolidado[Numero de Semana],$T19,Consolidado[STOP]) -> 0
B20: 2021-01-13 | F20: 79996.25 | G20: 0 | H20: 3 | T20: 11 | U20: =SUMIF(Consolidado[Numero de Semana],$T20,Consolidado[TAKE])-SUMIF(Consolidado[Numero de Semana],$T20,Consolidado[STOP]) -> 0
B21: 2021-01-14 | F21: 79996.25 | G21: 0 | H21: 3 | N21: Resultados Consecutivos maximos | Q21: Mayor Perdida | R21: Mayor Ganancia | T21: 12 | U21: =SUMIF(Consolidado[Numero de Semana],$T21,Consolidado[TAKE])-SUMIF(Consolidado[Numero de Semana],$T21,Consolidado[STOP]) -> 0
B22: 2021-01-15 | F22: 79996.25 | G22: 0 | H22: 3 | N22: Positivos | O22: Negativos | Q22: =MAX(Consolidado[STOP]) -> 0 | R22: =MAX(Consolidado[TAKE]) -> 0 | T22: 13 | U22: =SUMIF(Consolidado[Numero de Semana],$T22,Consolidado[TAKE])-SUMIF(Consolidado[Numero de Semana],$T22,Consolidado[STOP]) -> 0
B23: 2021-01-18 | F23: 79996.25 | G23: 0 | H23: 4 | N23: =MAX(IF($K$8:$K$272="POSITIVA",$L$8:$L$272)) -> 0 | O23: =MAX(IF($K$8:$K$272="NEGATIVA",$L$8:$L$272)) -> 0 | T23: 14 | U23: =SUMIF(Consolidado[Numero de Semana],$T23,Consolidado[TAKE])-SUMIF(Consolidado[Numero de Semana],$T23,Consolidado[STOP]) -> 0
B24: 2021-01-19 | F24: 79996.25 | G24: 0 | H24: 4 | T24: 15 | U24: =SUMIF(Consolidado[Numero de Semana],$T24,Consolidado[TAKE])-SUMIF(Consolidado[Numero de Semana],$T24,Consolidado[STOP]) -> 0
B25: 2021-01-20 | F25: 79996.25 | G25: 0 | H25: 4 | N25: STOP | O25: TAKE | Q25: Dias sin Trade en el año | T25: 16 | U25: =SUMIF(Consolidado[Numero de Semana],$T25,Consolidado[TAKE])-SUMIF(Consolidado[Numero de Semana],$T25,Consolidado[STOP]) -> 0
B26: 2021-01-21 | F26: 79996.25 | G26: 0 | H26: 4 | N26: =SUM(Consolidado[STOP]) -> 0 | O26: =SUM(Consolidado[TAKE]) -> 0 | Q26: =COUNTIFS(Consolidado[STOP],"",Consolidado[TAKE],"") -> 265 | T26: 17 | U26: =SUMIF(Consolidado[Numero de Semana],$T26,Consolidado[TAKE])-SUMIF(Consolidado[Numero de Semana],$T26,Consolidado[STOP]) -> 0
B27: 2021-01-22 | F27: 79996.25 | G27: 0 | H27: 4 | T27: 18 | U27: =SUMIF(Consolidado[Numero de Semana],$T27,Consolidado[TAKE])-SUMIF(Consolidado[Numero de Semana],$T27,Consolidado[STOP]) -> 0
B28: 2021-01-25 | F28: 79996.25 | G28: 0 | H28: 5 | T28: 19 | U28: =SUMIF(Consolidado[Numero de Semana],$T28,Consolidado[TAKE])-SUMIF(Consolidado[Numero de Semana],$T28,Consolidado[STOP]) -> 0
B29: 2021-01-26 | F29: 79996.25 | G29: 0 | H29: 5 | N29: Dias Consecutivos sin trades en el año | T29: 20 | U29: =SUMIF(Consolidado[Numero de Semana],$T29,Consolidado[TAKE])-SUMIF(Consolidado[Numero de Semana],$T29,Consolidado[STOP]) -> 0
B30: 2021-01-27 | F30: 79996.25 | G30: 0 | H30: 5 | N30: =MAX(IF($L$8:$L$272="",$K$8:$K$272)) -> 0 | T30: 21 | U30: =SUMIF(Consolidado[Numero de Semana],$T30,Consolidado[TAKE])-SUMIF(Consolidado[Numero de Semana],$T30,Consolidado[STOP]) -> 0
B31: 2021-01-28 | F31: 79996.25 | G31: 0 | H31: 5 | T31: 22 | U31: =SUMIF(Consolidado[Numero de Semana],$T31,Consolidado[TAKE])-SUMIF(Consolidado[Numero de Semana],$T31,Consolidado[STOP]) -> 0
B32: 2021-01-29 | F32: 79996.25 | G32: 0 | H32: 5 | T32: 23 | U32: =SUMIF(Consolidado[Numero de Semana],$T32,Consolidado[TAKE])-SUMIF(Consolidado[Numero de Semana],$T32,Consolidado[STOP]) -> 0
B33: 2021-02-01 | F33: 79981.25 | G33: 0 | H33: 6 | T33: 24 | U33: =SUMIF(Consolidado[Numero de Semana],$T33,Consolidado[TAKE])-SUMIF(Consolidado[Numero de Semana],$T33,Consolidado[STOP]) -> 0
B34: 2021-02-02 | F34: 79981.25 | G34: 0 | H34: 6 | T34: 25 | U34: =SUMIF(Consolidado[Numero de Semana],$T34,Consolidado[TAKE])-SUMIF(Consolidado[Numero de Semana],$T34,Consolidado[STOP]) -> 0
B35: 2021-02-03 | F35: 79981.25 | G35: 0 | H35: 6 | T35: 26 | U35: =SUMIF(Consolidado[Numero de Semana],$T35,Consolidado[TAKE])-SUMIF(Consolidado[Numero de Semana],$T35,Consolidado[STOP]) -> 0
B36: 2021-02-04 | F36: 79981.25 | G36: 0 | H36: 6 | T36: 27 | U36: =SUMIF(Consolidado[Numero de Semana],$T36,Consolidado[TAKE])-SUMIF(Consolidado[Numero de Semana],$T36,Consolidado[STOP]) -> 0
B37: 2021-02-05 | F37: 79981.25 | G37: 0 | H37: 6 | T37: 28 | U37: =SUMIF(Consolidado[Numero de Semana],$T37,Consolidado[TAKE])-SUMIF(Consolidado[Numero de Semana],$T37,Consolidado[STOP]) -> 0
B38: 2021-02-08 | F38: 79981.25 | G38: 0 | H38: 7 | T38: 29 | U38: =SUMIF(Consolidado[Numero de Semana],$T38,Consolidado[TAKE])-SUMIF(Consolidado[Numero de Semana],$T38,Consolidado[STOP]) -> 0
B39: 2021-02-09 | F39: 79981.25 | G39: 0 | H39: 7 | T39: 30 | U39: =SUMIF(Consolidado[Numero de Semana],$T39,Consolidado[TAKE])-SUMIF(Consolidado[Numero de Semana],$T39,Consolidado[STOP]) -> 0
B40: 2021-02-10 | F40: 79981.25 | G40: 0 | H40: 7 | T40: 32 | U40: =SUMIF(Consolidado[Numero de Semana],$T40,Consolidado[TAKE])-SUMIF(Consolidado[Numero de Semana],$T40,Consolidado[STOP]) -> 0
B41: 2021-02-11 | F41: 79981.25 | G41: 0 | H41: 7 | T41: 33 | U41: =SUMIF(Consolidado[Numero de Semana],$T41,Consolidado[TAKE])-SUMIF(Consolidado[Numero de Semana],$T41,Consolidado[STOP]) -> 0
B42: 2021-02-12 | F42: 79981.25 | G42: 0 | H42: 7 | T42: 34 | U42: =SUMIF(Consolidado[Numero de Semana],$T42,Consolidado[TAKE])-SUMIF(Consolidado[Numero de Semana],$T42,Consolidado[STOP]) -> 0
B43: 2021-02-15 | F43: 79981.25 | G43: 0 | H43: 8 | T43: 35 | U43: =SUMIF(Consolidado[Numero de Semana],$T43,Consolidado[TAKE])-SUMIF(Consolidado[Numero de Semana],$T43,Consolidado[STOP]) -> 0
B44: 2021-02-16 | F44: 79981.25 | G44: 0 | H44: 8 | T44: 36 | U44: =SUMIF(Consolidado[Numero de Semana],$T44,Consolidado[TAKE])-SUMIF(Consolidado[Numero de Semana],$T44,Consolidado[STOP]) -> 0
B45: 2021-02-17 | F45: 79981.25 | G45: 0 | H45: 8 | T45: 37 | U45: =SUMIF(Consolidado[Numero de Semana],$T45,Consolidado[TAKE])-SUMIF(Consolidado[Numero de Semana],$T45,Consolidado[STOP]) -> 0
B46: 2021-02-18 | F46: 79981.25 | G46: 0 | H46: 8 | T46: 38 | U46: =SUMIF(Consolidado[Numero de Semana],$T46,Consolidado[TAKE])-SUMIF(Consolidado[Numero de Semana],$T46,Consolidado[STOP]) -> 0
B47: 2021-02-19 | F47: 79981.25 | G47: 0 | H47: 8 | T47: 39 | U47: =SUMIF(Consolidado[Numero de Semana],$T47,Consolidado[TAKE])-SUMIF(Consolidado[Numero de Semana],$T47,Consolidado[STOP]) -> 0
B48: 2021-02-22 | F48: 79981.25 | G48: 0 | H48: 9 | T48: 40 | U48: =SUMIF(Consolidado[Numero de Semana],$T48,Consolidado[TAKE])-SUMIF(Consolidado[Numero de Semana],$T48,Consolidado[STOP]) -> 0
B49: 2021-02-23 | F49: 79981.25 | G49: 0 | H49: 9 | T49: 41 | U49: =SUMIF(Consolidado[Numero de Semana],$T49,Consolidado[TAKE])-SUMIF(Consolidado[Numero de Semana],$T49,Consolidado[STOP]) -> 0
B50: 2021-02-24 | F50: 79981.25 | G50: 0 | H50: 9 | T50: 42 | U50: =SUMIF(Consolidado[Numero de Semana],$T50,Consolidado[TAKE])-SUMIF(Consolidado[Numero de Semana],$T50,Consolidado[STOP]) -> 0
B51: 2021-02-25 | F51: 79981.25 | G51: 0 | H51: 9 | T51: 43 | U51: =SUMIF(Consolidado[Numero de Semana],$T51,Consolidado[TAKE])-SUMIF(Consolidado[Numero de Semana],$T51,Consolidado[STOP]) -> 0
B52: 2021-02-26 | F52: 79981.25 | G52: 0 | H52: 9 | T52: 45 | U52: =SUMIF(Consolidado[Numero de Semana],$T52,Consolidado[TAKE])-SUMIF(Consolidado[Numero de Semana],$T52,Consolidado[STOP]) -> 0
B53: 2021-03-01 | F53: 79966.25 | G53: 0 | H53: 10 | T53: 46 | U53: =SUMIF(Consolidado[Numero de Semana],$T53,Consolidado[TAKE])-SUMIF(Consolidado[Numero de Semana],$T53,Consolidado[STOP]) -> 0
B54: 2021-03-02 | F54: 79966.25 | G54: 0 | H54: 10 | T54: 47 | U54: =SUMIF(Consolidado[Numero de Semana],$T54,Consolidado[TAKE])-SUMIF(Consolidado[Numero de Semana],$T54,Consolidado[STOP]) -> 0
B55: 2021-03-03 | F55: 79966.25 | G55: 0 | H55: 10 | T55: 48 | U55: =SUMIF(Consolidado[Numero de Semana],$T55,Consolidado[TAKE])-SUMIF(Consolidado[Numero de Semana],$T55,Consolidado[STOP]) -> 0
B56: 2021-03-04 | F56: 79966.25 | G56: 0 | H56: 10 | T56: 49 | U56: =SUMIF(Consolidado[Numero de Semana],$T56,Consolidado[TAKE])-SUMIF(Consolidado[Numero de Semana],$T56,Consolidado[STOP]) -> 0
B57: 2021-03-05 | F57: 79966.25 | G57: 0 | H57: 10 | T57: 50 | U57: =SUMIF(Consolidado[Numero de Semana],$T57,Consolidado[TAKE])-SUMIF(Consolidado[Numero de Semana],$T57,Consolidado[STOP]) -> 0
B58: 2021-03-08 | F58: 79966.25 | G58: 0 | H58: 11 | T58: 51 | U58: =SUMIF(Consolidado[Numero de Semana],$T58,Consolidado[TAKE])-SUMIF(Consolidado[Numero de Semana],$T58,Consolidado[STOP]) -> 0
B59: 2021-03-09 | F59: 79966.25 | G59: 0 | H59: 11 | T59: 52 | U59: =SUMIF(Consolidado[Numero de Semana],$T59,Consolidado[TAKE])-SUMIF(Consolidado[Numero de Semana],$T59,Consolidado[STOP]) -> 0
B60: 2021-03-10 | F60: 79966.25 | G60: 0 | H60: 11 | T60: 53 | U60: =SUMIF(Consolidado[Numero de Semana],$T60,Consolidado[TAKE])-SUMIF(Consolidado[Numero de Semana],$T60,Consolidado[STOP]) -> 0
B61: 2021-03-11 | F61: 79966.25 | G61: 0 | H61: 11
B62: 2021-03-12 | F62: 79966.25 | G62: 0 | H62: 11
B63: 2021-03-15 | F63: 79966.25 | G63: 0 | H63: 12
B64: 2021-03-16 | F64: 79966.25 | G64: 0 | H64: 12
B65: 2021-03-17 | F65: 79966.25 | G65: 0 | H65: 12
B66: 2021-03-18 | F66: 79966.25 | G66: 0 | H66: 12
B67: 2021-03-19 | F67: 79966.25 | G67: 0 | H67: 12
B68: 2021-03-22 | F68: 79966.25 | G68: 0 | H68: 13
B69: 2021-03-23 | F69: 79966.25 | G69: 0 | H69: 13
B70: 2021-03-24 | F70: 79966.25 | G70: 0 | H70: 13
B71: 2021-03-25 | F71: 79966.25 | G71: 0 | H71: 13
B72: 2021-03-26 | F72: 79966.25 | G72: 0 | H72: 13
B73: 2021-03-29 | F73: 79966.25 | G73: 0 | H73: 14
B74: 2021-03-30 | F74: 79966.25 | G74: 0 | H74: 14
B75: 2021-03-31 | F75: 79966.25 | G75: 0 | H75: 14
B76: 2021-04-01 | F76: 79951.25 | G76: 0 | H76: 14
B77: 2021-04-02 | F77: 79951.25 | G77: 0 | H77: 14
B78: 2021-04-05 | F78: 79951.25 | G78: 0 | H78: 15
B79: 2021-04-06 | F79: 79951.25 | G79: 0 | H79: 15
B80: 2021-04-07 | F80: 79951.25 | G80: 0 | H80: 15
B81: 2021-04-08 | F81: 79951.25 | G81: 0 | H81: 15
B82: 2021-04-09 | F82: 79951.25 | G82: 0 | H82: 15
B83: 2021-04-12 | F83: 79951.25 | G83: 0 | H83: 16
B84: 2021-04-13 | F84: 79951.25 | G84: 0 | H84: 16
B85: 2021-04-14 | F85: 79951.25 | G85: 0 | H85: 16
B86: 2021-04-15 | F86: 79951.25 | G86: 0 | H86: 16
B87: 2021-04-16 | F87: 79951.25 | G87: 0 | H87: 16
B88: 2021-04-19 | F88: 79951.25 | G88: 0 | H88: 17
B89: 2021-04-20 | F89: 79951.25 | G89: 0 | H89: 17
B90: 2021-04-21 | F90: 79951.25 | G90: 0 | H90: 17
B91: 2021-04-22 | F91: 79951.25 | G91: 0 | H91: 17
B92: 2021-04-23 | F92: 79951.25 | G92: 0 | H92: 17
B93: 2021-04-26 | F93: 79951.25 | G93: 0 | H93: 18
B94: 2021-04-27 | F94: 79951.25 | G94: 0 | H94: 18
B95: 2021-04-28 | F95: 79951.25 | G95: 0 | H95: 18
B96: 2021-04-29 | F96: 79951.25 | G96: 0 | H96: 18
B97: 2021-04-30 | F97: 79951.25 | G97: 0 | H97: 18
B98: 2021-05-03 | F98: 79936.25 | G98: 0 | H98: 19
B99: 2021-05-04 | F99: 79936.25 | G99: 0 | H99: 19
B100: 2021-05-05 | F100: 79936.25 | G100: 0 | H100: 19
B101: 2021-05-06 | F101: 79936.25 | G101: 0 | H101: 19
B102: 2021-05-07 | F102: 79936.25 | G102: 0 | H102: 19
B103: 2021-05-10 | F103: 79936.25 | G103: 0 | H103: 20
B104: 2021-05-11 | F104: 79936.25 | G104: 0 | H104: 20
B105: 2021-05-12 | F105: 79936.25 | G105: 0 | H105: 20
B106: 2021-05-13 | F106: 79936.25 | G106: 0 | H106: 20
B107: 2021-05-14 | F107: 79936.25 | G107: 0 | H107: 20
B108: 2021-05-17 | F108: 79936.25 | G108: 0 | H108: 21
B109: 2021-05-18 | F109: 79936.25 | G109: 0 | H109: 21
B110: 2021-05-19 | F110: 79936.25 | G110: 0 | H110: 21
B111: 2021-05-20 | F111: 79936.25 | G111: 0 | H111: 21
B112: 2021-05-21 | F112: 79936.25 | G112: 0 | H112: 21
B113: 2021-05-24 | F113: 79936.25 | G113: 0 | H113: 22
B114: 2021-05-25 | F114: 79936.25 | G114: 0 | H114: 22
B115: 2021-05-26 | F115: 79936.25 | G115: 0 | H115: 22
B116: 2021-05-27 | F116: 79936.25 | G116: 0 | H116: 22
B117: 2021-05-28 | F117: 79936.25 | G117: 0 | H117: 22
B118: 2021-05-31 | F118: 79936.25 | G118: 0 | H118: 23
B119: 2021-06-01 | F119: 79921.25 | G119: 0 | H119: 23
B120: 2021-06-02 | F120: 79921.25 | G120: 0 | H120: 23
B121: 2021-06-03 | F121: 79921.25 | G121: 0 | H121: 23
B122: 2021-06-04 | F122: 79921.25 | G122: 0 | H122: 23
B123: 2021-06-07 | F123: 79921.25 | G123: 0 | H123: 24
B124: 2021-06-08 | F124: 79921.25 | G124: 0 | H124: 24
B125: 2021-06-09 | F125: 79921.25 | G125: 0 | H125: 24
B126: 2021-06-10 | F126: 79921.25 | G126: 0 | H126: 24
B127: 2021-06-11 | F127: 79921.25 | G127: 0 | H127: 24
B128: 2021-06-14 | F128: 79921.25 | G128: 0 | H128: 25
B129: 2021-06-15 | F129: 79921.25 | G129: 0 | H129: 25
B130: 2021-06-16 | F130: 79921.25 | G130: 0 | H130: 25
B131: 2021-06-17 | F131: 79921.25 | G131: 0 | H131: 25
B132: 2021-06-18 | F132: 79921.25 | G132: 0 | H132: 25
B133: 2021-06-21 | F133: 79921.25 | G133: 0 | H133: 26
B134: 2021-06-22 | F134: 79921.25 | G134: 0 | H134: 26
B135: 2021-06-23 | F135: 79921.25 | G135: 0 | H135: 26
B136: 2021-06-24 | F136: 79921.25 | G136: 0 | H136: 26
B137: 2021-06-25 | F137: 79921.25 | G137: 0 | H137: 26
B138: 2021-06-28 | F138: 79921.25 | G138: 0 | H138: 27
B139: 2021-06-29 | F139: 79921.25 | G139: 0 | H139: 27
B140: 2021-06-30 | F140: 79921.25 | G140: 0 | H140: 27
B141: 2021-07-01 | F141: 79906.25 | G141: 0 | H141: 27
B142: 2021-07-02 | F142: 79906.25 | G142: 0 | H142: 27
B143: 2021-07-05 | F143: 79906.25 | G143: 0 | H143: 28
B144: 2021-07-06 | F144: 79906.25 | G144: 0 | H144: 28
B145: 2021-07-07 | F145: 79906.25 | G145: 0 | H145: 28
B146: 2021-07-08 | F146: 79906.25 | G146: 0 | H146: 28
B147: 2021-07-09 | F147: 79906.25 | G147: 0 | H147: 28
B148: 2021-07-12 | F148: 79906.25 | G148: 0 | H148: 29
B149: 2021-07-13 | F149: 79906.25 | G149: 0 | H149: 29
B150: 2021-07-14 | F150: 79906.25 | G150: 0 | H150: 29
B151: 2021-07-15 | F151: 79906.25 | G151: 0 | H151: 29
B152: 2021-07-16 | F152: 79906.25 | G152: 0 | H152: 29
B153: 2021-07-19 | F153: 79906.25 | G153: 0 | H153: 30
B154: 2021-07-20 | F154: 79906.25 | G154: 0 | H154: 30
B155: 2021-07-21 | F155: 79906.25 | G155: 0 | H155: 30
B156: 2021-07-22 | F156: 79906.25 | G156: 0 | H156: 30
B157: 2021-07-23 | F157: 79906.25 | G157: 0 | H157: 30
B158: 2021-07-26 | F158: 79906.25 | G158: 0 | H158: 31
B159: 2021-07-27 | F159: 79906.25 | G159: 0 | H159: 31
B160: 2021-07-28 | F160: 79906.25 | G160: 0 | H160: 31
B161: 2021-07-29 | F161: 79906.25 | G161: 0 | H161: 31
B162: 2021-07-30 | F162: 79906.25 | G162: 0 | H162: 31
B163: 2021-08-02 | F163: 79891.25 | G163: 0 | H163: 32
B164: 2021-08-03 | F164: 79891.25 | G164: 0 | H164: 32
B165: 2021-08-04 | F165: 79891.25 | G165: 0 | H165: 32
B166: 2021-08-05 | F166: 79891.25 | G166: 0 | H166: 32
B167: 2021-08-06 | F167: 79891.25 | G167: 0 | H167: 32
B168: 2021-08-09 | F168: 79891.25 | G168: 0 | H168: 33
B169: 2021-08-10 | F169: 79891.25 | G169: 0 | H169: 33
B170: 2021-08-11 | F170: 79891.25 | G170: 0 | H170: 33
B171: 2021-08-12 | F171: 79891.25 | G171: 0 | H171: 33
B172: 2021-08-13 | F172: 79891.25 | G172: 0 | H172: 33
B173: 2021-08-16 | F173: 79891.25 | G173: 0 | H173: 34
B174: 2021-08-17 | F174: 79891.25 | G174: 0 | H174: 34
B175: 2021-08-18 | F175: 79891.25 | G175: 0 | H175: 34
B176: 2021-08-19 | F176: 79891.25 | G176: 0 | H176: 34
B177: 2021-08-20 | F177: 79891.25 | G177: 0 | H177: 34
B178: 2021-08-23 | F178: 79891.25 | G178: 0 | H178: 35
B179: 2021-08-24 | F179: 79891.25 | G179: 0 | H179: 35
B180: 2021-08-25 | F180: 79891.25 | G180: 0 | H180: 35
B181: 2021-08-26 | F181: 79891.25 | G181: 0 | H181: 35
B182: 2021-08-27 | F182: 79891.25 | G182: 0 | H182: 35
B183: 2021-08-30 | F183: 79891.25 | G183: 0 | H183: 36
B184: 2021-08-31 | F184: 79891.25 | G184: 0 | H184: 36
B185: 2021-09-01 | F185: 79876.25 | G185: 0 | H185: 36
B186: 2021-09-02 | F186: 79876.25 | G186: 0 | H186: 36
B187: 2021-09-03 | F187: 79876.25 | G187: 0 | H187: 36
B188: 2021-09-06 | F188: 79876.25 | G188: 0 | H188: 37
B189: 2021-09-07 | F189: 79876.25 | G189: 0 | H189: 37
B190: 2021-09-08 | F190: 79876.25 | G190: 0 | H190: 37
B191: 2021-09-09 | F191: 79876.25 | G191: 0 | H191: 37
B192: 2021-09-10 | F192: 79876.25 | G192: 0 | H192: 37
B193: 2021-09-13 | F193: 79876.25 | G193: 0 | H193: 38
B194: 2021-09-14 | F194: 79876.25 | G194: 0 | H194: 38
B195: 2021-09-15 | F195: 79876.25 | G195: 0 | H195: 38
B196: 2021-09-16 | F196: 79876.25 | G196: 0 | H196: 38
B197: 2021-09-17 | F197: 79876.25 | G197: 0 | H197: 38
B198: 2021-09-20 | F198: 79876.25 | G198: 0 | H198: 39
B199: 2021-09-21 | F199: 79876.25 | G199: 0 | H199: 39
B200: 2021-09-22 | F200: 79876.25 | G200: 0 | H200: 39
B201: 2021-09-23 | F201: 79876.25 | G201: 0 | H201: 39
B202: 2021-09-24 | F202: 79876.25 | G202: 0 | H202: 39
B203: 2021-09-27 | F203: 79876.25 | G203: 0 | H203: 40
B204: 2021-09-28 | F204: 79876.25 | G204: 0 | H204: 40
... 68 more rows
